fUSD/lending_fUSD_20241121
["ID","MTS","AMOUNT","RATE_DAILY","PERIOD"]
[342915801,1732204238193,-500.0,0.00038903,11]
[342915802,1732204238202,-500.0,0.00038903,11]
[342915803,1732204238212,-500.0,0.00038903,11]
[342915804,1732204238221,-617.69,0.00038903,11]
[342915805,1732204238230,-617.09666946,0.00038903,11]
[342915807,1732204238239,-500.0,0.00038903,11]
[342915808,1732204238248,-500.0,0.00038903,11]
[342915811,1732204238258,-1049.63,0.00038903,11]
[342915814,1732204238267,-500.0,0.00038903,11]
[342915816,1732204238277,-1201.62,0.00038903,11]
[342915817,1732204238286,-500.0,0.00038903,11]
[342915818,1732204238296,-500.0,0.00038903,11]
[342915819,1732204238305,-852.4,0.00038903,11]
[342915820,1732204238316,-2673.56,0.00038903,11]
[342915821,1732204238325,-500.0,0.00038903,11]
[342915822,1732204238334,-1196.41,0.00038903,11]
[342915823,1732204238344,-500.0,0.00038903,11]
[342915824,1732204238353,-500.0,0.00038903,11]
[342915825,1732204238363,-500.0,0.00038903,11]
[342915826,1732204238375,-500.0,0.00038903,11]
[342915827,1732204238385,-3542.25,0.00038903,11]
[342915828,1732204238395,-500.0,0.00038903,11]
[342915829,1732204238404,-500.0,0.00038903,11]
[342915830,1732204238415,-500.0,0.00038903,11]
[342915831,1732204238424,-1342.07,0.00038903,11]
[342915832,1732204238434,-2500.26,0.00038903,11]
[342915833,1732204238444,-500.0,0.00038903,11]
[342915834,1732204238453,-500.0,0.00038903,11]
[342915835,1732204238463,-500.0,0.00038903,11]
[342915836,1732204238472,-500.0,0.00038903,11]
[342915837,1732204238482,-686.36,0.00038903,11]
[342915838,1732204238491,-500.0,0.00038903,11]
[342915839,1732204238501,-530.63,0.00038903,11]
[342915840,1732204238510,-500.0,0.00038903,11]
[342915841,1732204238520,-3668.1,0.00038903,11]
[342915842,1732204238529,-500.0,0.00038903,11]
[342915843,1732204238539,-500.0,0.00038903,11]
[342915844,1732204238548,-500.0,0.00038903,11]
[342915845,1732204238558,-500.0,0.00038903,11]
[342915846,1732204238568,-1008.95,0.00038903,11]
[342915847,1732204238577,-665.4,0.00038903,11]
[342915848,1732204238587,-500.0,0.00038903,11]
[342915849,1732204238597,-500.0,0.00038903,11]
[342915850,1732204238606,-500.0,0.00038903,11]
[342915851,1732204238615,-500.0,0.00038903,11]
[342915852,1732204238628,-500.0,0.00038903,11]
[342915853,1732204238637,-500.0,0.00038903,11]
[342915854,1732204238647,-500.0,0.00038903,11]
[342915855,1732204238657,-631.63,0.00038903,11]
[342915856,1732204238666,-500.0,0.00038903,11]
[342915857,1732204238676,-500.0,0.00038903,11]
[342915858,1732204238686,-500.0,0.00038904,11]
[342915859,1732204238695,-567.36,0.00038904,11]
[342915860,1732204238705,-500.0,0.00038904,11]
[342915861,1732204238715,-500.0,0.00038904,11]
[342915862,1732204238724,-500.0,0.00038904,11]
[342915863,1732204238733,-500.0,0.00038904,11]
[342915864,1732204238743,-500.0,0.00038904,11]
[342915865,1732204238752,-500.0,0.00038904,11]
[342915866,1732204238762,-500.0,0.00038904,11]
[342915867,1732204238771,-500.0,0.00038904,11]
[342915868,1732204238780,-500.0,0.00038904,11]
[342915869,1732204238789,-500.0,0.00038904,11]
[342915870,1732204238798,-500.0,0.00038904,11]
[342915871,1732204238808,-500.0,0.00038904,11]
[342915872,1732204238817,-500.0,0.00038904,11]
[342915874,1732204238827,-635.4,0.00038904,11]
[342915876,1732204238836,-500.0,0.00038904,11]
[342915878,1732204238845,-500.0,0.00038904,11]
[342915879,1732204238855,-500.0,0.00038904,11]
[342915881,1732204238864,-500.0,0.00038904,11]
[342915883,1732204238878,-500.0,0.00038904,11]
[342915884,1732204238888,-500.0,0.00038904,11]
[342915885,1732204238898,-629.21,0.00038904,11]
[342915886,1732204238907,-500.0,0.00038904,11]
[342915887,1732204238917,-500.0,0.00038904,11]
[342915888,1732204238927,-500.0,0.00038904,11]
[342915889,1732204238936,-500.0,0.00038904,11]
[342915890,1732204238945,-500.0,0.00038904,11]
[342915891,1732204238954,-726.04,0.00038904,11]
[342915892,1732204238964,-327.59502475,0.00038904,11]
[342915893,1732204238988,-172.40497525,0.00038904,11]
[342915894,1732204238997,-500.0,0.00038904,11]
[342915896,1732204239006,-500.0,0.00038904,11]
[342915898,1732204239016,-500.0,0.00038904,11]
[342915899,1732204239026,-611.7365227,0.00038904,11]
[342915900,1732204239035,-810.27,0.00038904,11]
[342915901,1732204239044,-500.0,0.00038904,11]
[342915902,1732204239053,-524.02,0.00038904,11]
[342915903,1732204239063,-857.98,0.00038904,11]
[342915904,1732204239072,-500.0,0.00038904,11]
[342915905,1732204239081,-500.0,0.00038904,11]
[342915906,1732204239091,-500.0,0.00038904,11]
[342915907,1732204239103,-594.22,0.00038904,11]
[342915908,1732204239116,-500.0,0.00038904,11]
[342915909,1732204239129,-500.0,0.00038904,11]
[342915910,1732204239138,-500.0,0.00038904,11]
[342915911,1732204239149,-952.08,0.00038904,11]
[342915912,1732204239158,-796.66,0.00038904,11]
[342915913,1732204239167,-500.0,0.00038904,11]
[342915914,1732204239176,-560.66976413,0.00038904,11]
[342915915,1732204239186,-500.0,0.00038904,11]
[342915916,1732204239196,-613.05537095,0.00038904,11]
[342915920,1732204239528,-300.21462905,0.00038904,11]
[342915921,1732204239538,-500.0,0.00038904,11]
[342915922,1732204239548,-500.0,0.00038904,11]
[342915923,1732204239558,-500.0,0.00038904,11]
[342915924,1732204239567,-500.0,0.00038904,11]
[342915925,1732204239578,-500.0,0.00038904,11]
[342915926,1732204239588,-509.61045283,0.00038904,11]
[342915927,1732204239597,-500.0,0.00038904,11]
[342915928,1732204239607,-500.0,0.00038904,11]
[342915929,1732204239618,-549.48,0.00038904,11]
[342915930,1732204239635,-696.29,0.00038904,11]
[342915931,1732204239645,-500.0,0.00038904,11]
[342915932,1732204239655,-500.0,0.00038904,11]
[342915933,1732204239666,-683.63,0.00038904,11]
[342915934,1732204239677,-725.57,0.00038904,11]
[342915935,1732204239696,-514.9,0.00038904,11]
[342915936,1732204239719,-500.0,0.00038904,11]
[342915937,1732204239749,-1188.15,0.00038904,11]
[342915938,1732204239777,-500.0,0.00038904,7]
[342915939,1732204239803,-500.0,0.00038904,11]
[342915940,1732204239827,-500.0,0.00038904,11]
[342915941,1732204239853,-500.0,0.00038904,11]
[342915942,1732204239869,-500.0,0.00038904,11]
[342915943,1732204239884,-578.77,0.00038904,11]
[342915944,1732204239894,-500.0,0.00038904,11]
[342915945,1732204239904,-500.0,0.00038904,11]
[342915946,1732204239913,-596.04,0.00038904,11]
[342915947,1732204239922,-500.0,0.00038904,11]
[342915948,1732204239932,-500.0,0.00038904,11]
[342915949,1732204239942,-501.52,0.00038904,11]
[342915950,1732204239951,-1592.31,0.00038904,11]
[342915951,1732204239961,-500.0,0.00038904,11]
[342915952,1732204239970,-500.0,0.00038904,11]
[342915953,1732204239979,-585.43,0.00038904,11]
[342915954,1732204239989,-500.0,0.00038904,11]
[342915955,1732204239998,-788.71,0.00038904,11]
[342915956,1732204240008,-500.0,0.00038904,11]
[342915957,1732204240017,-500.0,0.00038904,11]
[342915958,1732204240027,-500.0,0.00038904,11]
[342915959,1732204240036,-500.0,0.00038904,11]
[342915960,1732204240046,-500.0,0.00038904,11]
[342915961,1732204240056,-500.0,0.00038904,11]
[342915962,1732204240066,-500.0,0.00038904,11]
[342915963,1732204240076,-570.76,0.00038904,11]
[342915964,1732204240086,-500.0,0.00038904,11]
[342915965,1732204240095,-500.0,0.00038904,11]
[342915966,1732204240107,-500.0,0.00038904,11]
[342915967,1732204240119,-869.92,0.00038904,11]
[342915969,1732204240132,-500.0,0.00038904,11]
[342915971,1732204240142,-605.74,0.00038904,11]
[342915972,1732204240153,-514.62,0.00038904,11]
[342915973,1732204240163,-500.0,0.00038904,11]
[342915975,1732204240172,-903.28,0.00038904,11]
[342915977,1732204240183,-500.0,0.00038904,11]
[342915978,1732204240192,-500.0,0.00038904,11]
[342915980,1732204240202,-500.0,0.00038904,11]
[342915981,1732204240212,-500.0,0.00038904,11]
[342915982,1732204240221,-500.0,0.00038904,11]
[342915983,1732204240231,-500.0,0.00038904,11]
[342915984,1732204240240,-500.0,0.00038904,11]
[342915985,1732204240250,-500.0,0.00038904,11]
[342915986,1732204240260,-500.0,0.00038904,11]
[342915987,1732204240269,-300.0,0.00038904,11]
[342915988,1732204240278,-500.0,0.00038904,11]
[342915989,1732204240287,-500.0,0.00038904,11]
[342915990,1732204240297,-500.0,0.00038904,11]
[342915991,1732204240306,-856.81,0.00038904,11]
[342915992,1732204240316,-578.58,0.00038904,11]
[342915993,1732204240325,-329.5829032,0.00038904,11]
[342915994,1732204240335,-658.66,0.00038904,11]
[342915995,1732204240344,-1413.85,0.00038904,11]
[342915996,1732204240354,-500.0,0.00038904,11]
[342915997,1732204240363,-500.0,0.00038904,11]
[342915998,1732204240374,-357.23595846,0.00038904,11]
[342915999,1732204240384,-1062.88,0.00038904,11]
[342916000,1732204240394,-500.0,0.00038904,11]
[342916001,1732204240403,-726.84,0.00038904,11]
[342916002,1732204240412,-500.0,0.00038904,11]
[342916003,1732204240422,-623.27,0.00038904,11]
[342916005,1732204240574,-500.0,0.00038904,11]
[342916006,1732204240584,-903.26,0.00038904,11]
[342916007,1732204240593,-1214.4,0.00038904,11]
[342916008,1732204240603,-500.0,0.00038904,11]
[342916009,1732204240613,-500.0,0.00038904,11]
[342916010,1732204240623,-500.0,0.00038904,11]
[342916011,1732204240637,-1747.29,0.00038904,11]
[342916012,1732204240647,-500.0,0.00038904,11]
[342916013,1732204240656,-530.21,0.00038904,11]
[342916014,1732204240666,-500.0,0.00038904,11]
[342916015,1732204240676,-500.0,0.00038904,11]
[342916016,1732204240686,-500.0,0.00038904,11]
[342916017,1732204240695,-500.0,0.00038904,11]
[342916019,1732204240705,-11365.11,0.00038904,11]
[342916021,1732204240715,-500.0,0.00038904,11]
[342916022,1732204240725,-500.0,0.00038904,11]
[342916023,1732204240735,-500.0,0.00038904,11]
[342916024,1732204240745,-150.0,0.00038933,2]
[342916025,1732204240755,-764.59,0.00039176,11]
[342916026,1732204240765,-955.73,0.00039176,11]
[342916027,1732204240775,-500.0,0.00039177,11]
[342916029,1732204240785,-532.48,0.00039177,11]
[342916030,1732204240796,-650.76,0.00039177,11]
[342916031,1732204240805,-500.0,0.00039177,11]
[342916032,1732204240815,-500.0,0.00039177,11]
[342916033,1732204240824,-1063.94,0.00039177,11]
[342916034,1732204240833,-640.18,0.00039177,11]
[342916035,1732204240844,-3521.01,0.00039177,11]
[342916036,1732204240853,-500.0,0.00039177,11]
[342916037,1732204240863,-500.0,0.00039177,11]
[342916038,1732204240873,-500.0,0.00039177,11]
[342916039,1732204240887,-500.0,0.00039177,11]
[342916040,1732204240897,-500.0,0.00039177,11]
[342916041,1732204240906,-500.0,0.00039177,11]
[342916042,1732204240916,-500.0,0.00039177,11]
[342916043,1732204240925,-500.0,0.00039177,11]
[342916044,1732204240934,-500.0,0.00039177,11]
[342916045,1732204240946,-500.0,0.00039177,11]
[342916046,1732204240955,-502.31,0.00039177,11]
[342916047,1732204240964,-500.0,0.00039177,11]
[342916048,1732204240973,-500.0,0.00039177,11]
[342916049,1732204240983,-500.0,0.00039177,11]
[342916050,1732204240992,-153.60068691,0.00039177,11]
[342916051,1732204241002,-500.0,0.00039177,11]
[342916052,1732204241011,-2162.36,0.00039177,11]
[342916053,1732204241020,-500.0,0.00039177,11]
[342916054,1732204241030,-500.0,0.00039177,11]
[342916055,1732204241039,-500.0,0.00039177,11]
[342916056,1732204241048,-1528.23,0.00039177,11]
[342916057,1732204241057,-500.0,0.00039177,11]
[342916058,1732204241067,-500.0,0.00039177,11]
[342916059,1732204241076,-500.0,0.00039177,11]
[342916060,1732204241086,-500.0,0.00039177,11]
[342916061,1732204241095,-500.0,0.00039177,11]
[342916062,1732204241109,-500.0,0.00039177,11]
[342916063,1732204241120,-617.69,0.00039177,11]
[342916064,1732204241133,-500.0,0.00039177,11]
[342916065,1732204241143,-500.0,0.00039177,11]
[342916066,1732204241154,-1049.63,0.00039177,11]
[342916067,1732204241164,-500.0,0.00039177,11]
[342916068,1732204241173,-1201.62,0.00039177,11]
[342916069,1732204241184,-500.0,0.00039177,11]
[342916070,1732204241194,-500.0,0.00039177,11]
[342916071,1732204241203,-852.4,0.00039177,11]
[342916072,1732204241213,-2673.56,0.00039177,11]
[342916073,1732204241223,-500.0,0.00039177,11]
[342916074,1732204241232,-1196.41,0.00039177,11]
[342916075,1732204241242,-493.948191,0.00039177,11]
[342916076,1732204241251,-500.0,0.00039177,11]
[342916077,1732204241261,-500.0,0.00039177,11]
[342916078,1732204241271,-500.0,0.00039177,11]
[342916079,1732204241280,-3542.25,0.00039177,11]
[342916080,1732204241289,-500.0,0.00039177,11]
[342916081,1732204241299,-500.0,0.00039177,11]
[342916082,1732204241308,-500.0,0.00039177,11]
[342916083,1732204241318,-1342.07,0.00039177,11]
[342916084,1732204241327,-2500.26,0.00039177,11]
[342916085,1732204241336,-500.0,0.00039177,11]
[342916086,1732204241346,-500.0,0.00039177,11]
[342916087,1732204241355,-500.0,0.00039177,11]
[342916088,1732204241364,-500.0,0.00039177,11]
[342916089,1732204241376,-686.36,0.00039177,11]
[342916090,1732204241389,-500.0,0.00039177,11]
[342916091,1732204241398,-530.63,0.00039177,11]
[342916092,1732204241407,-500.0,0.00039177,11]
[342916093,1732204241416,-3668.1,0.00039177,11]
[342916094,1732204241425,-500.0,0.00039177,11]
[342916095,1732204241435,-500.0,0.00039177,11]
[342916096,1732204241444,-500.0,0.00039177,11]
[342916097,1732204241453,-500.0,0.00039177,11]
[342916098,1732204241463,-1008.95,0.00039177,11]
[342916099,1732204241473,-665.4,0.00039177,11]
[342916100,1732204241482,-500.0,0.00039177,11]
[342916101,1732204241492,-500.0,0.00039177,11]
[342916102,1732204241502,-500.0,0.00039177,11]
[342916103,1732204241511,-500.0,0.00039177,11]
[342916104,1732204241522,-500.0,0.00039177,11]
[342916105,1732204241532,-500.0,0.00039177,11]
[342916106,1732204241542,-631.63,0.00039177,11]
[342916107,1732204241551,-500.0,0.00039177,11]
[342916108,1732204241561,-500.0,0.00039177,11]
[342916109,1732204241571,-567.36,0.00039178,11]
[342916110,1732204241581,-500.0,0.00039178,11]
[342916111,1732204241590,-500.0,0.00039178,11]
[342916112,1732204241601,-500.0,0.00039178,11]
[342916113,1732204241611,-500.0,0.00039178,11]
[342916114,1732204241620,-500.0,0.00039178,11]
[342916115,1732204241634,-500.0,0.00039178,11]
[342916116,1732204241644,-500.0,0.00039178,11]
[342916117,1732204241653,-500.0,0.00039178,11]
[342916118,1732204241663,-500.0,0.00039178,11]
[342916119,1732204241673,-500.0,0.00039178,11]
[342916120,1732204241683,-500.0,0.00039178,11]
[342916121,1732204241693,-500.0,0.00039178,11]
[342916122,1732204241702,-500.0,0.00039178,11]
[342916123,1732204241712,-635.4,0.00039178,11]
[342916124,1732204241722,-500.0,0.00039178,11]
[342916125,1732204241732,-500.0,0.00039178,11]
[342916126,1732204241741,-500.0,0.00039178,11]
[342916127,1732204241751,-500.0,0.00039178,11]
[342916128,1732204241761,-500.0,0.00039178,11]
[342916129,1732204241771,-500.0,0.00039178,11]
[342916130,1732204241780,-629.21,0.00039178,11]
[342916131,1732204241790,-500.0,0.00039178,11]
[342916132,1732204241800,-500.0,0.00039178,11]
[342916133,1732204241809,-500.0,0.00039178,11]
[342916134,1732204241819,-481.50717855,0.00039178,11]
[342916135,1732204241834,-18.49282145,0.00039178,11]
[342916136,1732204241847,-500.0,0.00039178,11]
[342916137,1732204241857,-726.04,0.00039178,11]
[342916138,1732204241867,-283.43089274,0.00039178,11]
[342916139,1732204241880,-500.0,0.00039178,11]
[342916140,1732204241890,-500.0,0.00039178,11]
[342916141,1732204241900,-500.0,0.00039178,11]
[342916142,1732204241910,-810.27,0.00039178,11]
[342916143,1732204241920,-500.0,0.00039178,11]
[342916144,1732204241930,-524.02,0.00039178,11]
[342916145,1732204241939,-857.98,0.00039178,11]
[342916146,1732204241949,-500.0,0.00039178,11]
[342916147,1732204241958,-500.0,0.00039178,11]
[342916148,1732204241967,-500.0,0.00039178,11]
[342916149,1732204241977,-594.22,0.00039178,11]
[342916150,1732204241986,-343.03942998,0.00039178,11]
[342916151,1732204241996,-316.09408561,0.00039178,11]
[342916152,1732204242005,-500.0,0.00039178,11]
[342916153,1732204242014,-952.08,0.00039178,11]
[342916154,1732204242024,-796.66,0.00039178,11]
[342916155,1732204242033,-500.0,0.00039178,11]
[342916156,1732204242043,-500.0,0.00039178,11]
[342916157,1732204242052,-582.91776899,0.00039178,11]
[342916158,1732204242064,-330.35223101,0.00039178,11]
[342916159,1732204242073,-500.0,0.00039178,11]
[342916160,1732204242083,-500.0,0.00039178,11]
[342916161,1732204242092,-500.0,0.00039178,11]
[342916162,1732204242102,-500.0,0.00039178,11]
[342916163,1732204242113,-500.0,0.00039178,11]
[342916164,1732204242123,-500.0,0.00039178,11]
[342916165,1732204242135,-500.0,0.00039178,11]
[342916166,1732204242144,-549.48,0.00039178,11]
[342916167,1732204242154,-696.29,0.00039178,11]
[342916168,1732204242163,-500.0,0.00039178,11]
[342916169,1732204242173,-500.0,0.00039178,11]
[342916170,1732204242182,-683.63,0.00039178,11]
[342916171,1732204242193,-725.57,0.00039178,11]
[342916172,1732204242202,-514.9,0.00039178,11]
[342916173,1732204242211,-500.0,0.00039178,11]
[342916174,1732204242220,-1188.15,0.00039178,11]
[342916175,1732204242230,-500.0,0.00039178,7]
[342916176,1732204242239,-500.0,0.00039178,11]
[342916177,1732204242248,-500.0,0.00039178,11]
[342916178,1732204242257,-500.0,0.00039178,11]
[342916179,1732204242267,-500.0,0.00039178,11]
[342916180,1732204242277,-578.77,0.00039178,11]
[342916181,1732204242287,-500.0,0.00039178,11]
[342916182,1732204242296,-500.0,0.00039178,11]
[342916183,1732204242305,-596.04,0.00039178,11]
[342916184,1732204242314,-500.0,0.00039178,11]
[342916185,1732204242323,-500.0,0.00039178,11]
[342916186,1732204242332,-501.52,0.00039178,11]
[342916187,1732204242342,-1592.31,0.00039178,11]
[342916188,1732204242351,-500.0,0.00039178,11]
[342916189,1732204242361,-500.0,0.00039178,11]
[342916190,1732204242370,-585.43,0.00039178,11]
[342916191,1732204242383,-172.91776899,0.00039178,11]
[342916192,1732204242395,-315.17033,0.00039178,11]
[342916193,1732204242563,-11.91190101,0.00039178,11]
[342916194,1732204242573,-788.71,0.00039178,11]
[342916195,1732204242583,-500.0,0.00039178,11]
[342916196,1732204242592,-500.0,0.00039178,11]
[342916197,1732204242601,-500.0,0.00039178,11]
[342916198,1732204242611,-500.0,0.00039178,11]
[342916199,1732204242621,-500.0,0.00039178,11]
[342916200,1732204242637,-500.0,0.00039178,11]
[342916201,1732204242647,-500.0,0.00039178,11]
[342916202,1732204242656,-570.76,0.00039178,11]
[342916203,1732204242666,-500.0,0.00039178,11]
[342916204,1732204242676,-500.0,0.00039178,11]
[342916205,1732204242685,-500.0,0.00039178,11]
[342916206,1732204242695,-869.92,0.00039178,11]
[342916207,1732204242704,-500.0,0.00039178,11]
[342916208,1732204242714,-605.74,0.00039178,11]
[342916209,1732204242724,-514.62,0.00039178,11]
[342916210,1732204242733,-374.72297256,0.00039178,11]
[342916211,1732204242743,-903.28,0.00039178,11]
[342916212,1732204242752,-351.01286375,0.00039178,11]
[342916213,1732204242761,-500.0,0.00039178,11]
[342916214,1732204242770,-500.0,0.00039178,11]
[342916215,1732204242780,-500.0,0.00039178,11]
[342916216,1732204242789,-500.0,0.00039178,11]
[342916217,1732204242798,-500.0,0.00039178,11]
[342916218,1732204242808,-500.0,0.00039178,11]
[342916219,1732204242817,-500.0,0.00039178,11]
[342916220,1732204242826,-500.0,0.00039178,11]
[342916221,1732204242838,-300.0,0.00039178,11]
[342916222,1732204242847,-500.0,0.00039178,11]
[342916223,1732204242856,-500.0,0.00039178,11]
[342916226,1732204243169,-500.0,0.00039178,11]
[342916228,1732204243180,-856.81,0.00039178,11]
[342916229,1732204243190,-578.58,0.00039178,11]
[342916230,1732204243200,-658.66,0.00039178,11]
[342916231,1732204243209,-1413.85,0.00039178,11]
[342916232,1732204243218,-500.0,0.00039178,11]
[342916233,1732204243227,-500.0,0.00039178,11]
[342916234,1732204243237,-1062.88,0.00039178,11]
[342916235,1732204243247,-500.0,0.00039178,11]
[342916237,1732204243256,-726.84,0.00039178,11]
[342916239,1732204243267,-500.0,0.00039178,11]
[342916241,1732204243276,-623.27,0.00039178,11]
[342916243,1732204243285,-500.0,0.00039178,11]
[342916245,1732204243294,-903.26,0.00039178,11]
[342916246,1732204243304,-1214.4,0.00039178,11]
[342916247,1732204243314,-500.0,0.00039178,11]
[342916248,1732204243323,-500.0,0.00039178,11]
[342916249,1732204243332,-546.86434817,0.00039178,11]
[342916250,1732204243342,-1747.29,0.00039178,11]
[342916251,1732204243350,-500.0,0.00039178,11]
[342916252,1732204243360,-530.21,0.00039178,11]
[342916253,1732204243370,-500.0,0.00039178,11]
[342916254,1732204243387,-376.69747608,0.00039178,11]
[342916255,1732204243396,-500.0,0.00039178,11]
[342916256,1732204243406,-500.0,0.00039178,11]
[342916257,1732204243415,-11365.11,0.00039178,11]
[342916258,1732204243426,-500.0,0.00039178,11]
[342916259,1732204243436,-500.0,0.00039178,11]
[342916260,1732204243446,-500.0,0.00039178,11]
[342916261,1732204243455,-3301.68859385,0.0003939,15]
[342916262,1732204243465,-764.59,0.0003945,11]
[342916263,1732204243475,-955.73,0.0003945,11]
[342916264,1732204243485,-500.0,0.00039451,11]
[342916265,1732204243495,-532.48,0.00039451,11]
[342916266,1732204243505,-650.76,0.00039451,11]
[342916267,1732204243515,-500.0,0.00039451,11]
[342916268,1732204243525,-500.0,0.00039451,11]
[342916269,1732204243534,-1063.94,0.00039451,11]
[342916270,1732204243544,-640.18,0.00039451,11]
[342916271,1732204243553,-3521.01,0.00039451,11]
[342916272,1732204243562,-500.0,0.00039451,11]
[342916273,1732204243572,-500.0,0.00039451,11]
[342916274,1732204243581,-500.0,0.00039451,11]
[342916275,1732204243591,-500.0,0.00039451,11]
[342916276,1732204243600,-500.0,0.00039451,11]
[342916277,1732204243609,-500.0,0.00039451,11]
[342916278,1732204243619,-500.0,0.00039451,11]
[342916279,1732204243633,-500.0,0.00039451,11]
[342916280,1732204243643,-500.0,0.00039451,11]
[342916281,1732204243652,-500.0,0.00039451,11]
[342916282,1732204243662,-502.31,0.00039451,11]
[342916283,1732204243672,-500.0,0.00039451,11]
[342916284,1732204243681,-500.0,0.00039451,11]
[342916285,1732204243691,-500.0,0.00039451,11]
[342916286,1732204243702,-500.0,0.00039451,11]
[342916287,1732204243711,-2162.36,0.00039451,11]
[342916288,1732204243721,-260.03604688,0.00039451,11]
[342916289,1732204243731,-208.21522458,0.00039451,11]
[342916290,1732204243743,-291.78477542,0.00039451,11]
[342916291,1732204243753,-500.0,0.00039451,11]
[342916292,1732204243763,-1528.23,0.00039451,11]
[342916293,1732204243772,-500.0,0.00039451,11]
[342916294,1732204243782,-500.0,0.00039451,11]
[342916295,1732204243791,-500.0,0.00039451,11]
[342916296,1732204243800,-500.0,0.00039451,11]
[342916297,1732204243809,-500.0,0.00039451,11]
[342916298,1732204243818,-500.0,0.00039451,11]
[342916299,1732204243827,-617.69,0.00039451,11]
[342916301,1732204243837,-500.0,0.00039451,11]
[342916303,1732204243846,-500.0,0.00039451,11]
[342916305,1732204243856,-1049.63,0.00039451,11]
[342916306,1732204243865,-500.0,0.00039451,11]
[342916307,1732204243874,-1201.62,0.00039451,11]
[342916308,1732204243887,-500.0,0.00039451,11]
[342916309,1732204243895,-461.09733852,0.00039451,11]
[342916310,1732204243905,-852.4,0.00039451,11]
[342916311,1732204243914,-2673.56,0.00039451,11]
[342916312,1732204243923,-500.0,0.00039451,11]
[342916313,1732204243932,-227.2283108,0.00039451,11]
[342916314,1732204243944,-581.51629935,0.00039451,11]
[342916315,1732204244316,-268.88582129,0.00036174,120]
[342916316,1732204244327,-284.64054986,0.00036174,120]
[342916317,1732204244340,-622.49170516,0.00036174,120]
[342916318,1732204244350,-500.0,0.00038356,11]
[342916319,1732204244360,-500.0,0.00038629,11]
[342916320,1732204244369,-500.0,0.0003863,11]
[342916321,1732204244382,-500.0,0.00038903,11]
[342916322,1732204244391,-500.0,0.00038904,11]
[342916323,1732204244401,-500.0,0.00039178,11]
[342916324,1732204244411,-387.66538985,0.00039451,11]
[342916325,1732204244421,-500.0,0.00039451,11]
[342916326,1732204244431,-530.31788766,0.00039451,11]
[342916327,1732204244441,-500.0,0.00039451,11]
[342916328,1732204244451,-3542.25,0.00039451,11]
[342916329,1732204244460,-500.0,0.00039451,11]
[342916330,1732204244470,-500.0,0.00039451,11]
[342916331,1732204244479,-500.0,0.00039451,11]
[342916332,1732204244489,-1342.07,0.00039451,11]
[342916333,1732204244499,-2500.26,0.00039451,11]
[342916334,1732204244508,-500.0,0.00039451,11]
[342916335,1732204244519,-500.0,0.00039451,11]
[342916336,1732204244529,-500.0,0.00039451,11]